[Event "Turkish-ch Youth U18 Girls 2024"]
[Site "Belek Antalya"]
[Date "2024.01.23"]
[Round "3"]
[White "Yilmaz, Gokcen"]
[Black "Turunz, Dilek"]
[Result "1-0"]
[ECO "B22"]
[WhiteElo "1761"]
[BlackElo "1453"]
[Annotator "NA RC COMBH"]
[PlyCount "156"]
[EventDate "2024.01.21"]
[EventType "swiss"]
[EventCountry "TUR"]
[SourceTitle "playchess.com"]
[Source "ChessBase"]
[SourceQuality "1"]
[TimeControl "5400+30"]

1. e4 {[%emt 0:02:00]} c5 {[%emt 0:01:00]} 2. Nf3 {[%emt 0:00:30]} a6 {[%emt 0:00:00]} 3. c3 {[%emt 0:02:30]} d5 {[%emt 0:00:00]} 4. exd5 {[%emt 0:00:30]} Qxd5 {[%emt 0:00:00]} 5. d4 {[%emt 0:00:30]} Nf6 {[%emt 0:01:00]} 6. Be3 {[%emt 0:03:30]} cxd4 {[%emt 0:01:30]} 7. cxd4 {[%emt 0:00:30]} e6 {[%emt 0:00:30]} 8. Nc3 {[%emt 0:00:30]} Qd6 {[%emt 0:02:30]} 9. Bd3 {[%emt 0:01:30]} Be7 {[%emt 0:00:30]} 10. O-O {[%emt 0:00:30]} Nc6 {[%emt 0:05:30]} 11. Rc1 {[%emt 0:05:30]} O-O {[%emt 0:07:30]} 12. Bb1 {[%emt 0:05:30]} Rd8 {[%emt 0:04:30]} 13. Qe2 {[%emt 0:09:30]} Nb4 {[%emt 0:07:30]} 14. Ng5 {[%emt 0:08:30]} Nbd5 {[%emt 0:18:30]} 15. Nce4 {[%emt 0:02:30]} Qb8 {[%emt 0:04:30]} 16. Qd3 {[%emt 0:18:30]} g6 {[%emt 0:03:30]} 17. Nxf7 {[%emt 0:07:30]} Nb4 {[%emt 0:23:44]} 18. Nh6+ {[%emt 0:01:30]} Kg7 {[%emt 0:02:53]} 19. Qe2 {[%emt 0:06:30]} Nxa2 {[%emt 0:03:36]} 20. Bxa2 {[%emt 0:03:52]} Nxe4 {[%emt 0:00:25]} 21. Ng4 {[%emt 0:00:31]} Nf6 {[%emt 0:01:51]} 22. Nxf6 {[%emt 0:00:25]} Bxf6 {[%emt 0:00:31]} 23. d5 {[%emt 0:04:23]} Qe5 {[%emt 0:05:06]} 24. Rc2 {[%emt 0:10:19]} exd5 {[%emt 0:00:44]} 25. Qd2 {[%emt 0:00:09]} Be6 {[%emt 0:01:31]} 26. Bf4 {[%emt 0:00:24]} Qf5 {[%emt 0:01:49]} 27. Rc7+ {[%emt 0:00:36]} Kg8 {[%emt 0:00:31]} 28. Bb1 {[%emt 0:00:30]} Qg4 {[%emt 0:01:39]} 29. f3 {[%emt 0:01:07]} Qh5 {[%emt 0:01:17]} 30. Rxb7 {[%emt 0:01:19]} d4 {[%emt 0:00:45]} 31. Rb6 {[%emt 0:00:42]} Re8 {[%emt 0:00:27]} 32. Rxe6 {[%emt 0:01:28]} Rxe6 {[%emt 0:00:30]} 33. Ba2 {[%emt 0:00:00]} Rae8 {[%emt 0:00:14]} 34. Re1 {[%emt 0:00:31]} Kf7 {[%emt 0:00:06]} 35. Rxe6 {[%emt 0:01:48]} Rxe6 {[%emt 0:00:30]} 36. Bxe6+ {[%emt 0:00:30]} Kxe6 {[%emt 0:00:30]} 37. Qe2+ {[%emt 0:00:30]} Kf7 {[%emt 0:00:30]} 38. Qxa6 {[%emt 0:00:30]} Qc5 {[%emt 0:00:00]} 39. Qb7+ {[%emt 0:00:32]} Kg8 {[%emt 0:00:19]} 40. b4 {[%emt 0:01:14]} Qc3 {[%emt 0:01:43]} 41. Qb8+ {[%emt 0:00:19]} Kf7 {[%emt 0:00:00]} 42. Qc7+ {[%emt 0:01:01]} Qxc7 {[%emt 0:00:26]} 43. Bxc7 {[%emt 0:00:00]} Ke6 {[%emt 0:00:09]} 44. b5 {[%emt 0:00:42]} Kd7 {[%emt 0:01:09]} 45. b6 {[%emt 0:00:17]} d3 {[%emt 0:00:57]} 46. Kf1 {[%emt 0:00:30]} Bc3 {[%emt 0:00:00]} 47. Kf2 {[%emt 0:00:21]} Bd4+ {[%emt 0:00:16]} 48. Ke1 {[%emt 0:00:00]} Be3 {[%emt 0:00:11]} 49. f4 {[%emt 0:01:12]} Kc6 {[%emt 0:00:30]} 50. g4 {[%emt 0:00:08]} Kb7 {[%emt 0:00:55]} 51. f5 {[%emt 0:01:27]} gxf5 {[%emt 0:00:30]} 52. gxf5 {[%emt 0:00:00]} Bg5 {[%emt 0:00:03]} 53. h4 {[%emt 0:00:59]} Bh6 {[%emt 0:01:30]} 54. f6 {[%emt 0:00:22]} Kc6 {[%emt 0:00:59]} 55. f7 {[%emt 0:00:36]} Kd7 {[%emt 0:00:00]} 56. Bf4 {[%emt 0:00:30]} d2+ {[%emt 0:00:46]} 57. Bxd2 {[%emt 0:00:09]} Bf8 {[%emt 0:00:29]} 58. Bf4 {[%emt 0:00:14]} Kc6 {[%emt 0:00:23]} 59. Bc7 {[%emt 0:00:06]} Be7 {[%emt 0:00:32]} 60. Ke2 {[%emt 0:00:32]} Kd7 {[%emt 0:00:43]} 61. Kf3 {[%emt 0:00:13]} Bc5 {[%emt 0:00:00]} 62. Kg4 {[%emt 0:00:36]} Kc6 {[%emt 0:01:03]} 63. Kf5 {[%emt 0:00:30]} Kd7 {[%emt 0:00:30]} 64. Kg5 {[%emt 0:00:30]} Bf8 {[%emt 0:00:30]} 65. Kh5 {[%emt 0:00:30]} Kc6 {[%emt 0:00:30]} 66. Bd8 {[%emt 0:00:00]} Kb7 {[%emt 0:00:00]} 67. Kg5 {[%emt 0:00:00]} Bg7 {[%emt 0:00:21]} 68. h5 {[%emt 0:00:44]} Kc6 {[%emt 0:00:53]} 69. Bf6 {[%emt 0:01:19]} Bf8 {[%emt 0:00:37]} 70. Bd4 {[%emt 0:00:04]} Kd7 {[%emt 0:00:12]} 71. h6 {[%emt 0:01:37]} Kc6 {[%emt 0:00:14]} 72. Bg7 {[%emt 0:00:21]} Be7+ {[%emt 0:00:39]} 73. Kf5 {[%emt 0:00:22]} Kxb6 {[%emt 0:00:16]} 74. f8=Q {[%emt 0:00:30]} Bxf8 {[%emt 0:00:30]} 75. Bxf8 {[%emt 0:00:30]} Kc6 {[%emt 0:00:30]} 76. Kf6 {[%emt 0:00:30]} Kd7 {[%emt 0:00:30]} 77. Kg7 {[%emt 0:00:30]} Ke6 {[%emt 0:00:30]} 78. Kxh7 {[%emt 0:00:30]} Kf7 {[%emt 0:00:00]} 1-0

[Event "Turkish-ch Youth U18 Girls 2024"]
[Site "Belek Antalya"]
[Date "2024.01.23"]
[Round "3"]
[White "Keskin, Elif"]
[Black "Barlas, Berra Fatos"]
[Result "1-0"]
[ECO "A43"]
[WhiteElo "1636"]
[BlackElo "1170"]
[Annotator "NA RC COMBH"]
[PlyCount "69"]
[EventDate "2024.01.21"]
[EventType "swiss"]
[EventCountry "TUR"]
[SourceTitle "playchess.com"]
[Source "ChessBase"]
[SourceQuality "1"]
[TimeControl "5400+30"]

1. d4 {[%emt 0:01:00]} c5 {[%emt 0:01:00]} 2. d5 {[%emt 0:00:30]} Nf6 {[%emt 0:00:00]} 3. Nc3 {[%emt 0:00:30]} g6 {[%emt 0:01:00]} 4. e4 {[%emt 0:00:30]} d6 {[%emt 0:00:00]} 5. Be2 {[%emt 0:02:30]} a6 {[%emt 0:03:00]} 6. a4 {[%emt 0:00:30]} Bg7 {[%emt 0:00:30]} 7. Nf3 {[%emt 0:01:30]} O-O {[%emt 0:00:30]} 8. O-O {[%emt 0:00:30]} Nbd7 {[%emt 0:00:30]} 9. Nd2 {[%emt 0:01:30]} Ne5 {[%emt 0:15:30]} 10. f4 {[%emt 0:16:30]} Ned7 {[%emt 0:18:30]} 11. Nc4 {[%emt 0:02:30]} Ne8 {[%emt 0:01:30]} 12. Be3 {[%emt 0:17:30]} Nb6 {[%emt 0:03:30]} 13. Nd2 {[%emt 0:05:30]} f5 {[%emt 0:14:30]} 14. a5 {[%emt 0:07:30]} Nd7 {[%emt 0:00:30]} 15. exf5 {[%emt 0:01:30]} Rxf5 {[%emt 0:06:30]} 16. Bg4 {[%emt 0:07:30]} Rf8 {[%emt 0:00:30]} 17. Be6+ {[%emt 0:00:30]} Kh8 {[%emt 0:00:00]} 18. Nde4 {[%emt 0:01:30]} Bf6 {[%emt 0:06:00]} 19. f5 {[%emt 0:17:05]} Ne5 {[%emt 0:04:30]} 20. fxg6 {[%emt 0:05:30]} Bxe6 {[%emt 0:06:19]} 21. dxe6 {[%emt 0:00:30]} Nxg6 {[%emt 0:00:00]} 22. Ng5 {[%emt 0:02:12]} Bxg5 {[%emt 0:00:40]} 23. Bxg5 {[%emt 0:00:56]} Ng7 {[%emt 0:06:34]} 24. Qd5 {[%emt 0:01:28]} Rxf1+ {[%emt 0:03:00]} 25. Rxf1 {[%emt 0:00:11]} Ne5 {[%emt 0:03:44]} 26. Qxb7 {[%emt 0:01:05]} Rb8 {[%emt 0:01:38]} 27. Qxe7 {[%emt 0:00:52]} Qxe7 {[%emt 0:00:30]} 28. Bxe7 {[%emt 0:00:30]} Nxe6 {[%emt 0:00:30]} 29. Bxd6 {[%emt 0:00:00]} Nd7 {[%emt 0:00:00]} 30. Bxb8 {[%emt 0:00:00]} Kg7 {[%emt 0:00:25]} 31. Bg3 {[%emt 0:00:13]} Nd4 {[%emt 0:00:30]} 32. Rd1 {[%emt 0:00:30]} Kf6 {[%emt 0:01:35]} 33. Bf2 {[%emt 0:00:00]} Ke5 {[%emt 0:00:08]} 34. Bxd4+ {[%emt 0:00:21]} cxd4 {[%emt 0:00:30]} 35. Ne2 {[%emt 0:00:00]} 1-0

[Event "Turkish-ch Youth U18 Girls 2024"]
[Site "Belek Antalya"]
[Date "2024.01.23"]
[Round "3"]
[White "Ermemis, Zehra Ece"]
[Black "Yigit, Cansu"]
[Result "1/2-1/2"]
[ECO "C45"]
[WhiteElo "1533"]
[BlackElo "1298"]
[Annotator "NA RC COMBH"]
[PlyCount "142"]
[EventDate "2024.01.21"]
[EventType "swiss"]
[EventCountry "TUR"]
[SourceTitle "playchess.com"]
[Source "ChessBase"]
[SourceQuality "1"]
[TimeControl "5400+30"]

1. e4 {[%emt 0:01:00]} e5 {[%emt 0:01:00]} 2. Nf3 {[%emt 0:00:30]} Nc6 {[%emt 0:00:30]} 3. d4 {[%emt 0:00:00]} exd4 {[%emt 0:04:30]} 4. Nxd4 {[%emt 0:00:00]} Bc5 {[%emt 0:03:30]} 5. Be3 {[%emt 0:01:30]} Qf6 {[%emt 0:01:30]} 6. c3 {[%emt 0:00:30]} Nge7 {[%emt 0:03:30]} 7. Be2 {[%emt 0:05:30]} O-O {[%emt 0:06:30]} 8. O-O {[%emt 0:02:30]} Bb6 {[%emt 0:06:30]} 9. Na3 {[%emt 0:08:30]} d5 {[%emt 0:05:30]} 10. Nxc6 {[%emt 0:16:30]} bxc6 {[%emt 0:09:30]} 11. Qd3 {[%emt 0:07:30]} dxe4 {[%emt 0:05:30]} 12. Qxe4 {[%emt 0:03:30]} Bf5 {[%emt 0:01:30]} 13. Qf3 {[%emt 0:01:30]} Nd5 {[%emt 0:06:30]} 14. Nc4 {[%emt 0:04:30]} Rfe8 {[%emt 0:03:30]} 15. Rad1 {[%emt 0:11:30]} Qe6 {[%emt 0:05:30]} 16. Nxb6 {[%emt 0:04:30]} cxb6 {[%emt 0:03:30]} 17. Bc4 {[%emt 0:04:30]} Bg4 {[%emt 0:03:30]} 18. Bxd5 {[%emt 0:01:30]} Bxf3 {[%emt 0:00:30]} 19. Bxe6 {[%emt 0:00:30]} Bxd1 {[%emt 0:00:30]} 20. Bxf7+ {[%emt 0:00:30]} Kxf7 {[%emt 0:00:30]} 21. Rxd1 {[%emt 0:00:30]} Rad8 {[%emt 0:00:00]} 22. Ra1 {[%emt 0:02:30]} Rd7 {[%emt 0:03:00]} 23. Kf1 {[%emt 0:00:30]} c5 {[%emt 0:03:30]} 24. a4 {[%emt 0:01:30]} a6 {[%emt 0:00:30]} 25. a5 {[%emt 0:04:07]} bxa5 {[%emt 0:04:10]} 26. Rxa5 {[%emt 0:03:24]} Rd1+ {[%emt 0:00:51]} 27. Ke2 {[%emt 0:00:03]} Rb1 {[%emt 0:00:33]} 28. Rxa6 {[%emt 0:00:30]} Rxb2+ {[%emt 0:00:00]} 29. Kd3 {[%emt 0:00:02]} Rxe3+ {[%emt 0:05:02]} 30. Kxe3 {[%emt 0:00:15]} Rc2 {[%emt 0:07:08]} 31. Ra3 {[%emt 0:00:41]} Ke6 {[%emt 0:00:56]} 32. g4 {[%emt 0:00:21]} g6 {[%emt 0:01:23]} 33. h4 {[%emt 0:05:00]} h5 {[%emt 0:00:43]} 34. g5 {[%emt 0:01:49]} Kf5 {[%emt 0:02:00]} 35. f3 {[%emt 0:02:55]} Rh2 {[%emt 0:01:19]} 36. Ra4 {[%emt 0:00:04]} Rc2 {[%emt 0:00:34]} 37. Rc4 {[%emt 0:00:20]} Ke5 {[%emt 0:01:14]} 38. Rxc5+ {[%emt 0:01:04]} Kd6 {[%emt 0:00:07]} 39. Rc4 {[%emt 0:00:58]} Kd5 {[%emt 0:00:51]} 40. Rd4+ {[%emt 0:00:35]} Ke5 {[%emt 0:00:09]} 41. Re4+ {[%emt 0:00:23]} Kf5 {[%emt 0:01:55]} 42. Rc4 {[%emt 0:03:39]} Ke5 {[%emt 0:00:56]} 43. Rc8 {[%emt 0:00:33]} Rh2 {[%emt 0:00:54]} 44. Re8+ {[%emt 0:00:50]} Kf5 {[%emt 0:00:12]} 45. Rf8+ {[%emt 0:01:02]} Ke5 {[%emt 0:00:24]} 46. Rf6 {[%emt 0:00:13]} Rxh4 {[%emt 0:00:15]} 47. Rxg6 {[%emt 0:00:00]} Rc4 {[%emt 0:00:49]} 48. f4+ {[%emt 0:01:27]} Kf5 {[%emt 0:00:30]} 49. Rf6+ {[%emt 0:00:30]} Kg4 {[%emt 0:00:00]} 50. Kd3 {[%emt 0:00:58]} Rc8 {[%emt 0:00:41]} 51. g6 {[%emt 0:01:01]} Rg8 {[%emt 0:00:51]} 52. f5 {[%emt 0:01:37]} h4 {[%emt 0:00:14]} 53. g7 {[%emt 0:01:00]} h3 {[%emt 0:00:27]} 54. Rh6 {[%emt 0:00:07]} Rxg7 {[%emt 0:01:20]} 55. Rg6+ {[%emt 0:00:30]} Rxg6 {[%emt 0:00:30]} 56. fxg6 {[%emt 0:00:30]} h2 {[%emt 0:00:30]} 57. g7 {[%emt 0:00:30]} h1=Q {[%emt 0:00:30]} 58. g8=Q+ {[%emt 0:00:00]} Kf5 {[%emt 0:00:00]} 59. Qf7+ {[%emt 0:00:00]} Kg4 {[%emt 0:00:00]} 60. Qg6+ {[%emt 0:00:00]} Kf4 {[%emt 0:00:00]} 61. Qf6+ {[%emt 0:00:12]} Kg4 {[%emt 0:00:01]} 62. Qd4+ {[%emt 0:00:31]} Kf5 {[%emt 0:00:28]} 63. Qd7+ {[%emt 0:02:02]} Kg5 {[%emt 0:00:20]} 64. Kc4 {[%emt 0:00:15]} Qe4+ {[%emt 0:02:00]} 65. Qd4 {[%emt 0:00:08]} Qe2+ {[%emt 0:00:30]} 66. Kb4 {[%emt 0:00:45]} Qb2+ {[%emt 0:00:41]} 67. Kc5 {[%emt 0:00:30]} Qa3+ {[%emt 0:00:20]} 68. Qb4 {[%emt 0:00:10]} Qa7+ {[%emt 0:00:08]} 69. Kc6 {[%emt 0:00:42]} Qa8+ {[%emt 0:00:52]} 70. Qb7 {[%emt 0:00:48]} Qe8+ {[%emt 0:00:30]} 71. Kb6 {[%emt 0:00:00]} Qe3+ {[%emt 0:00:01]} 1/2-1/2

[Event "Turkish-ch Youth U18 Girls 2024"]
[Site "Belek Antalya"]
[Date "2024.01.23"]
[Round "3"]
[White "Sovukluk, Ecem Su"]
[Black "Gunes, Eylul"]
[Result "1-0"]
[ECO "C47"]
[WhiteElo "1242"]
[BlackElo "1447"]
[Annotator "NA COMBH"]
[PlyCount "65"]
[EventDate "2024.01.21"]
[EventType "swiss"]
[EventCountry "TUR"]
[SourceTitle "playchess.com"]
[Source "ChessBase"]
[SourceQuality "1"]
[TimeControl "5400+30"]

1. e4 {[%emt 0:01:00]} e5 {[%emt 0:01:00]} 2. Nf3 {[%emt 0:00:30]} Nc6 {[%emt 0:00:30]} 3. d4 {[%emt 0:00:30]} exd4 {[%emt 0:00:30]} 4. Bc4 {[%emt 0:00:30]} Nf6 {[%emt 0:00:30]} 5. O-O {[%emt 0:00:00]} Be7 {[%emt 0:00:30]} 6. Nxd4 {[%emt 0:00:00]} O-O {[%emt 0:03:30]} 7. Nc3 {[%emt 0:02:30]} Bb4 {[%emt 0:05:30]} 8. Bg5 {[%emt 0:08:30]} Ne5 {[%emt 0:03:30]} 9. Bb3 {[%emt 0:11:30]} Bxc3 {[%emt 0:04:30]} 10. bxc3 {[%emt 0:00:30]} h6 {[%emt 0:00:30]} 11. Bxf6 {[%emt 0:00:30]} Qxf6 {[%emt 0:00:30]} 12. f4 {[%emt 0:00:00]} Ng6 {[%emt 0:02:30]} 13. e5 {[%emt 0:00:00]} Qb6 {[%emt 0:07:30]} 14. Rb1 {[%emt 0:02:30]} Qc5 {[%emt 0:02:30]} 15. Qd3 {[%emt 0:01:30]} d5 {[%emt 0:25:30]} 16. exd6 {[%emt 0:00:30]} Qxd6 {[%emt 0:00:30]} 17. f5 {[%emt 0:01:30]} Ne5 {[%emt 0:04:30]} 18. Qg3 {[%emt 0:06:30]} Nd7 {[%emt 0:17:42]} 19. Qf3 {[%emt 0:07:30]} Nf6 {[%emt 0:02:13]} 20. Kh1 {[%emt 0:02:30]} Bd7 {[%emt 0:06:13]} 21. Rbd1 {[%emt 0:04:30]} Qb6 {[%emt 0:03:38]} 22. Qh3 {[%emt 0:04:30]} c5 {[%emt 0:01:03]} 23. Ne6 {[%emt 0:04:30]} Rfe8 {[%emt 0:03:32]} 24. Rfe1 {[%emt 0:03:30]} Re7 {[%emt 0:02:07]} 25. Nf4 {[%emt 0:01:30]} Rxe1+ {[%emt 0:01:24]} 26. Rxe1 {[%emt 0:00:30]} Bb5 {[%emt 0:00:30]} 27. Nd5 {[%emt 0:00:30]} Nxd5 {[%emt 0:00:30]} 28. Bxd5 {[%emt 0:00:30]} Rd8 {[%emt 0:00:30]} 29. Be4 {[%emt 0:00:30]} Bc6 {[%emt 0:00:30]} 30. Bd3 {[%emt 0:00:30]} Qb2 {[%emt 0:00:58]} 31. f6 {[%emt 0:06:30]} Bd7 {[%emt 0:00:30]} 32. Qxd7 {[%emt 0:00:30]} Rxd7 {[%emt 0:00:30]} 33. Re8# {[%emt 0:00:00]} 1-0

[Event "Turkish-ch Youth U18 Girls 2024"]
[Site "Belek Antalya"]
[Date "2024.01.23"]
[Round "3"]
[White "Tekin, Ceyda"]
[Black "Kipik, Feyza"]
[Result "0-1"]
[ECO "B25"]
[WhiteElo "1207"]
[BlackElo "1727"]
[Annotator "NA RC COMBH"]
[PlyCount "102"]
[EventDate "2024.01.21"]
[EventType "swiss"]
[EventCountry "TUR"]
[SourceTitle "playchess.com"]
[Source "ChessBase"]
[SourceQuality "1"]
[TimeControl "5400+30"]

1. e4 {[%emt 0:01:00]} c5 {[%emt 0:01:00]} 2. Nc3 {[%emt 0:00:30]} Nc6 {[%emt 0:00:00]} 3. g3 {[%emt 0:00:30]} g6 {[%emt 0:00:00]} 4. Bg2 {[%emt 0:00:00]} Bg7 {[%emt 0:00:00]} 5. d3 {[%emt 0:02:00]} d6 {[%emt 0:00:00]} 6. Nge2 {[%emt 0:02:30]} e5 {[%emt 0:02:30]} 7. O-O {[%emt 0:02:30]} Nd4 {[%emt 0:06:30]} 8. Nxd4 {[%emt 0:04:30]} exd4 {[%emt 0:02:30]} 9. Nd5 {[%emt 0:02:30]} Nf6 {[%emt 0:03:30]} 10. Nxf6+ {[%emt 0:01:30]} Qxf6 {[%emt 0:00:30]} 11. f4 {[%emt 0:01:30]} O-O {[%emt 0:03:30]} 12. f5 {[%emt 0:04:30]} g5 {[%emt 0:05:30]} 13. Bd2 {[%emt 0:07:30]} Bd7 {[%emt 0:05:30]} 14. c3 {[%emt 0:04:30]} Rab8 {[%emt 0:05:30]} 15. Rb1 {[%emt 0:07:30]} b5 {[%emt 0:02:30]} 16. Kh1 {[%emt 0:10:30]} Qe7 {[%emt 0:11:30]} 17. cxd4 {[%emt 0:03:30]} Bxd4 {[%emt 0:00:30]} 18. Bc3 {[%emt 0:05:30]} Bf6 {[%emt 0:10:30]} 19. Bxf6 {[%emt 0:02:30]} Qxf6 {[%emt 0:00:00]} 20. b3 {[%emt 0:03:30]} Rfd8 {[%emt 0:05:00]} 21. Qe2 {[%emt 0:02:30]} b4 {[%emt 0:07:30]} 22. Qb2 {[%emt 0:00:30]} Kg7 {[%emt 0:07:56]} 23. Qxf6+ {[%emt 0:06:30]} Kxf6 {[%emt 0:00:06]} 24. Rbd1 {[%emt 0:01:30]} Ke5 {[%emt 0:03:00]} 25. Bf3 {[%emt 0:04:18]} a5 {[%emt 0:05:22]} 26. Kg2 {[%emt 0:03:36]} a4 {[%emt 0:02:54]} 27. Bh5 {[%emt 0:00:30]} Be8 {[%emt 0:00:30]} 28. f6 {[%emt 0:00:30]} h6 {[%emt 0:00:30]} 29. Rf5+ {[%emt 0:00:30]} Kd4 {[%emt 0:00:05]} 30. Be2 {[%emt 0:08:29]} axb3 {[%emt 0:05:35]} 31. axb3 {[%emt 0:00:12]} Kc3 {[%emt 0:00:01]} 32. Rb1 {[%emt 0:01:02]} Ra8 {[%emt 0:00:27]} 33. Rff1 {[%emt 0:00:07]} Ra2 {[%emt 0:00:41]} 34. Kf3 {[%emt 0:00:30]} Rda8 {[%emt 0:00:30]} 35. Ke3 {[%emt 0:01:27]} Rc2 {[%emt 0:02:16]} 36. Bd1 {[%emt 0:00:59]} Rxh2 {[%emt 0:00:38]} 37. Be2 {[%emt 0:01:39]} Ra2 {[%emt 0:00:23]} 38. Rfc1+ {[%emt 0:01:30]} Rc2 {[%emt 0:00:02]} 39. Rxc2+ {[%emt 0:01:13]} Kxc2 {[%emt 0:00:30]} 40. Ra1 {[%emt 0:00:30]} Bd7 {[%emt 0:00:30]} 41. Ra7 {[%emt 0:00:30]} Be6 {[%emt 0:00:43]} 42. Bg4 {[%emt 0:01:55]} Bxg4 {[%emt 0:00:13]} 43. Ra2+ {[%emt 0:00:24]} Kxb3 {[%emt 0:00:30]} 44. Rxh2 {[%emt 0:00:00]} Kc3 {[%emt 0:00:00]} 45. Rxh6 {[%emt 0:00:59]} b3 {[%emt 0:00:12]} 46. Rh1 {[%emt 0:00:48]} b2 {[%emt 0:01:10]} 47. e5 {[%emt 0:01:25]} dxe5 {[%emt 0:00:25]} 48. Ke4 {[%emt 0:01:05]} Kc2 {[%emt 0:00:30]} 49. Rh2+ {[%emt 0:00:00]} Kc1 {[%emt 0:00:03]} 50. Kxe5 {[%emt 0:00:42]} b1=Q {[%emt 0:00:30]} 51. Rh1+ {[%emt 0:00:00]} Bd1 {[%emt 0:00:00]} 0-1

[Event "Turkish-ch Youth U18 Girls 2024"]
[Site "Belek Antalya"]
[Date "2024.01.27"]
[Round "7"]
[White "Yilmaz, Gokcen"]
[Black "Barlas, Berra Fatos"]
[Result "1/2-1/2"]
[ECO "B01"]
[WhiteElo "1761"]
[BlackElo "1170"]
[Annotator "NA RC COMBH"]
[PlyCount "51"]
[EventDate "2024.01.21"]
[EventType "swiss"]
[EventCountry "TUR"]
[SourceTitle "playchess.com"]
[Source "ChessBase"]
[SourceQuality "1"]
[TimeControl "5400+30"]

1. e4 {[%emt 0:05:00]} d5 {[%emt 0:01:00]} 2. exd5 {[%emt 0:00:30]} Qxd5 {[%emt 0:00:30]} 3. Nc3 {[%emt 0:00:30]} Qa5 {[%emt 0:00:00]} 4. Bc4 {[%emt 0:00:00]} Nf6 {[%emt 0:00:00]} 5. d3 {[%emt 0:00:00]} c6 {[%emt 0:00:00]} 6. Bd2 {[%emt 0:00:30]} Qc7 {[%emt 0:00:00]} 7. Qe2 {[%emt 0:01:30]} Bg4 {[%emt 0:01:30]} 8. f3 {[%emt 0:00:30]} Bh5 {[%emt 0:00:30]} 9. g4 {[%emt 0:00:30]} Bg6 {[%emt 0:01:30]} 10. h4 {[%emt 0:07:30]} h5 {[%emt 0:03:30]} 11. g5 {[%emt 0:00:30]} Nfd7 {[%emt 0:00:00]} 12. f4 {[%emt 0:04:30]} b5 {[%emt 0:05:00]} 13. Bb3 {[%emt 0:00:30]} Nc5 {[%emt 0:01:30]} 14. Qf3 {[%emt 0:07:30]} e6 {[%emt 0:03:30]} 15. Nxb5 {[%emt 0:03:30]} Qb6 {[%emt 0:00:30]} 16. Nc3 {[%emt 0:01:30]} Nxb3 {[%emt 0:01:30]} 17. axb3 {[%emt 0:00:00]} Bd6 {[%emt 0:03:30]} 18. Be3 {[%emt 0:00:00]} Qc7 {[%emt 0:00:30]} 19. Nb5 {[%emt 0:06:30]} cxb5 {[%emt 0:07:30]} 20. Qxa8 {[%emt 0:01:30]} Qxc2 {[%emt 0:00:00]} 21. Bd2 {[%emt 0:00:30]} Qxb2 {[%emt 0:06:00]} 22. Qxa7 {[%emt 0:06:30]} O-O {[%emt 0:02:30]} 23. Qa2 {[%emt 0:07:30]} Qd4 {[%emt 0:03:30]} 24. Ne2 {[%emt 0:01:30]} Qxd3 {[%emt 0:00:30]} 25. Qb2 {[%emt 0:05:30]} Nc6 {[%emt 0:18:30]} 26. Rc1 {[%emt 0:16:30]} 1/2-1/2

[Event "Turkish-ch Youth U18 Girls 2024"]
[Site "Belek Antalya"]
[Date "2024.01.27"]
[Round "7"]
[White "Ermemis, Zehra Ece"]
[Black "Keskin, Elif"]
[Result "1/2-1/2"]
[ECO "B01"]
[WhiteElo "1533"]
[BlackElo "1636"]
[Annotator "NA RC COMBH"]
[PlyCount "41"]
[EventDate "2024.01.21"]
[EventType "swiss"]
[EventCountry "TUR"]
[SourceTitle "playchess.com"]
[Source "ChessBase"]
[SourceQuality "1"]
[TimeControl "5400+30"]

1. e4 {[%emt 0:01:00]} d5 {[%emt 0:02:00]} 2. exd5 {[%emt 0:00:00]} Qxd5 {[%emt 0:01:30]} 3. Nc3 {[%emt 0:00:00]} Qa5 {[%emt 0:00:30]} 4. g3 {[%emt 0:00:30]} Nf6 {[%emt 0:00:00]} 5. Bg2 {[%emt 0:00:00]} e5 {[%emt 0:00:00]} 6. Nf3 {[%emt 0:02:00]} Bb4 {[%emt 0:04:30]} 7. O-O {[%emt 0:06:30]} O-O {[%emt 0:02:30]} 8. a3 {[%emt 0:17:30]} c6 {[%emt 0:26:30]} 9. Rb1 {[%emt 0:01:30]} Bxc3 {[%emt 0:04:30]} 10. dxc3 {[%emt 0:00:30]} Bg4 {[%emt 0:04:30]} 11. Qd6 {[%emt 0:12:30]} Nbd7 {[%emt 0:06:30]} 12. b4 {[%emt 0:09:30]} Qd5 {[%emt 0:04:30]} 13. Qxd5 {[%emt 0:07:30]} cxd5 {[%emt 0:01:30]} 14. Re1 {[%emt 0:02:30]} Rfe8 {[%emt 0:01:30]} 15. Bb2 {[%emt 0:06:30]} Rac8 {[%emt 0:16:30]} 16. Nd2 {[%emt 0:09:30]} Bf5 {[%emt 0:02:29]} 17. Rbc1 {[%emt 0:01:30]} h6 {[%emt 0:08:57]} 18. Ba1 {[%emt 0:03:08]} b5 {[%emt 0:01:47]} 19. Bf1 {[%emt 0:08:48]} a6 {[%emt 0:01:12]} 20. a4 {[%emt 0:02:10]} Rb8 {[%emt 0:01:13]} 21. Nb1 {[%emt 0:01:59]} 1/2-1/2

[Event "Turkish-ch Youth U18 Girls 2024"]
[Site "Belek Antalya"]
[Date "2024.01.27"]
[Round "7"]
[White "Gunes, Eylul"]
[Black "Turunz, Dilek"]
[Result "1-0"]
[ECO "A36"]
[WhiteElo "1447"]
[BlackElo "1453"]
[Annotator "NA RC COMBH"]
[PlyCount "52"]
[EventDate "2024.01.21"]
[EventType "swiss"]
[EventCountry "TUR"]
[SourceTitle "playchess.com"]
[Source "ChessBase"]
[SourceQuality "1"]
[TimeControl "5400+30"]

1. e4 {[%emt 0:01:00]} c5 {[%emt 0:03:00]} 2. c4 {[%emt 0:00:00]} e6 {[%emt 0:03:30]} 3. Nc3 {[%emt 0:00:00]} Nc6 {[%emt 0:01:30]} 4. Nge2 {[%emt 0:00:30]} d6 {[%emt 0:01:30]} 5. g3 {[%emt 0:00:00]} Ne5 {[%emt 0:06:30]} 6. Ng1 {[%emt 0:03:00]} g6 {[%emt 0:24:30]} 7. d3 {[%emt 0:00:30]} Bg7 {[%emt 0:02:30]} 8. Bg2 {[%emt 0:01:30]} Ne7 {[%emt 0:01:30]} 9. Nge2 {[%emt 0:03:30]} N5c6 {[%emt 0:03:30]} 10. O-O {[%emt 0:01:30]} e5 {[%emt 0:00:30]} 11. f4 {[%emt 0:08:30]} h5 {[%emt 0:02:30]} 12. fxe5 {[%emt 0:03:30]} dxe5 {[%emt 0:03:30]} 13. Bg5 {[%emt 0:01:30]} O-O {[%emt 0:07:30]} 14. Nd5 {[%emt 0:07:30]} Bg4 {[%emt 0:04:30]} 15. Qd2 {[%emt 0:05:30]} Bxe2 {[%emt 0:03:30]} 16. Qxe2 {[%emt 0:00:00]} Qd6 {[%emt 0:08:30]} 17. Nf6+ {[%emt 0:07:00]} Bxf6 {[%emt 0:01:48]} 18. Rxf6 {[%emt 0:02:30]} Qd7 {[%emt 0:03:23]} 19. Bh6 {[%emt 0:04:30]} Rfe8 {[%emt 0:00:17]} 20. Raf1 {[%emt 0:02:30]} Nd8 {[%emt 0:00:30]} 21. Qf2 {[%emt 0:00:30]} Nec6 {[%emt 0:01:02]} 22. g4 {[%emt 0:19:30]} hxg4 {[%emt 0:08:31]} 23. Qh4 {[%emt 0:00:30]} Re6 {[%emt 0:04:27]} 24. Bg5 {[%emt 0:03:30]} Qd4+ {[%emt 0:01:56]} 25. Kh1 {[%emt 0:00:30]} Kf8 {[%emt 0:01:45]} 26. Rxe6 {[%emt 0:02:30]} Nb8 {[%emt 0:01:15]} 1-0